fUSD/lending_fUSD_20250227
["ID","MTS","AMOUNT","RATE_DAILY","PERIOD"]
[354696961,1740624668177,-233.79194413,0.00052974,30]
[354696962,1740624668186,-400.0,0.00052987,60]
[354696963,1740624668195,-321.86,0.00053,2]
[354696964,1740624668204,-11348.13021924,0.00053,120]
[354696965,1740624668213,-3093.3404905,0.00053,120]
[354696966,1740624668222,-1058804.0,0.00053,120]
[354696967,1740624668231,-512.3967347,0.00053,120]
[354696968,1740624668239,-151.0,0.00053,120]
[354696969,1740624668248,-151.0,0.00053,120]
[354696970,1740624668257,-151.0,0.00053,120]
[354696971,1740624668267,-186.724301,0.00053,120]
[354696972,1740624668275,-151.0,0.00053,120]
[354696973,1740624668284,-151.0,0.00053,120]
[354696974,1740624668295,-151.0,0.00053,120]
[354696975,1740624668304,-165.385666,0.00053,120]
[354696976,1740624668313,-165.385666,0.00053,120]
[354696977,1740624668323,-150.0,0.00053026,30]
[354696978,1740624668332,-233.79194413,0.00053029,30]
[354696979,1740624668342,-500.0,0.00053077,90]
[354696980,1740624668351,-150.0,0.0005308,30]
[354696981,1740624668360,-233.79194413,0.00053083,30]
[354696982,1740624668370,-150.0,0.00053099,30]
[354696983,1740624668379,-233.79194413,0.00053138,30]
[354696984,1740624668389,-836.09,0.0005315,120]
[354696985,1740624668398,-500.0,0.0005315,120]
[354696986,1740624668407,-4100.95,0.0005315,120]
[354696987,1740624668417,-542.26,0.0005315,120]
[354696988,1740624668426,-1000.0,0.00053151,120]
[354696989,1740624668436,-193.75,0.00053151,30]
[354696990,1740624668445,-150.0,0.00053172,30]
[354696991,1740624668455,-887.27,0.00053191,120]
[354696992,1740624668464,-233.79194413,0.00053192,30]
[354696993,1740624668473,-150.0,0.00053197,30]
[354696994,1740624668483,-150.0,0.00053226,30]
[354696995,1740624668492,-150.0,0.00053244,30]
[354696996,1740624668501,-233.79194413,0.00053247,30]
[354696997,1740624668511,-151.0,0.0005326,120]
[354696998,1740624668520,-233.79194413,0.00053301,30]
[354696999,1740624668529,-150.0,0.00053314,30]
[354697000,1740624668543,-150.0,0.00053317,30]
[354697001,1740624668552,-500.0,0.00053351,90]
[354697002,1740624668562,-233.79194413,0.00053356,30]
[354697003,1740624668571,-600.0,0.0005339,20]
[354697004,1740624668580,-150.0,0.0005339,30]
[354697005,1740624668590,-233.79194413,0.0005341,30]
[354697006,1740624668599,-836.09,0.00053424,120]
[354697007,1740624668611,-493.65954881,0.00053424,120]
[354697008,1740624668621,-4100.95,0.00053424,120]
[354697009,1740624668630,-542.26,0.00053424,120]
[354697010,1740624668640,-1000.0,0.00053425,120]
[354697011,1740624668650,-150.0,0.00053431,30]
[354697012,1740624668659,-150.0,0.00053463,30]
[354697013,1740624668669,-233.79194413,0.00053464,30]
[354697014,1740624668680,-887.27,0.00053465,120]
[354697015,1740624668690,-151.0,0.00053479,120]
[354697016,1740624668701,-233.79194413,0.00053519,30]
[354697017,1740624668710,-150.0,0.00053536,30]
[354697018,1740624668721,-150.0,0.00053548,30]
[354697019,1740624668730,-1004.0,0.0005356,100]
[354697020,1740624668740,-150.0,0.00053563,30]
[354697021,1740624668751,-302.07675342,0.0005357,7]
[354697022,1740624668760,-233.79194413,0.00053573,30]
[354697023,1740624668770,-150.0,0.00053609,30]
[354697024,1740624668780,-500.0,0.00053625,90]
[354697025,1740624668793,-233.79194413,0.00053628,30]
[354697026,1740624668803,-910.6324,0.00053631,3]
[354697027,1740624668812,-2000.0,0.00053631,3]
[354697028,1740624668821,-2000.0,0.00053631,3]
[354697029,1740624668830,-2000.0,0.00053631,3]
[354697030,1740624668840,-150.0,0.00053636,120]
[354697031,1740624668850,-150.0,0.00053666,30]
[354697032,1740624668860,-150.0,0.00053681,30]
[354697033,1740624668870,-233.79194413,0.00053682,30]
[354697034,1740624668879,-500.0,0.00053698,60]
[354697035,1740624668888,-836.09,0.00053698,120]
[354697036,1740624668898,-4100.95,0.00053698,120]
[354697037,1740624668908,-542.26,0.00053698,120]
[354697038,1740624668917,-1000.0,0.00053699,120]
[354697039,1740624668926,-233.79194413,0.00053737,30]
[354697040,1740624668935,-887.27,0.00053739,120]
[354697041,1740624668944,-150.0,0.00053754,30]
[354697042,1740624668953,-150.0,0.00053783,30]
[354697043,1740624668962,-233.79194413,0.00053791,30]
[354697044,1740624668971,-764.53119334,0.000538,120]
[354697045,1740624668980,-150.0,0.00053827,30]
[354697046,1740624668989,-233.79194413,0.00053846,30]
[354697047,1740624668998,-250.0,0.0005387,7]
[354697048,1740624669008,-150.0,0.00053877,120]
[354697049,1740624669022,-201.0,0.0005389,30]
[354697050,1740624669031,-204.0,0.0005389,30]
[354697051,1740624669045,-206.0,0.0005389,30]
[354697052,1740624669058,-353.0,0.0005389,30]
[354697053,1740624669067,-193.26551557,0.000539,31]
[354697054,1740624669076,-233.79194413,0.000539,30]
[354697055,1740624669085,-275.92278333,0.000539,30]
[354697056,1740624669097,-162.32841432,0.000539,30]
[354697057,1740624669107,-257.71866095,0.000539,30]
[354697058,1740624669116,-836.09,0.00053972,120]
[354697059,1740624669125,-4100.95,0.00053972,120]
[354697060,1740624669134,-542.26,0.00053972,120]
[354697061,1740624669145,-1000.0,0.00053973,120]
[354697062,1740624669153,-1000.0,0.00053999,120]
[354697063,1740624669163,-311.40158322,0.00054,120]
[354697064,1740624669173,-1000000.0,0.00054,120]
[354697065,1740624669182,-15401.32957303,0.00054,120]
[354697066,1740624669191,-489.966821,0.00054,55]
[354697067,1740624669200,-234.569673,0.00054,120]
[354697068,1740624669210,-151.0,0.00054,120]
[354697069,1740624669219,-151.0,0.00054,120]
[354697070,1740624669229,-151.0,0.00054,120]
[354697071,1740624669239,-151.0,0.00054,120]
[354697072,1740624669250,-151.0,0.00054,120]
[354697073,1740624669260,-165.385666,0.00054,120]
[354697074,1740624669270,-165.385675,0.00054,120]
[354697075,1740624669279,-887.27,0.00054013,120]
[354697076,1740624669291,-1000.0,0.00054246,120]
[354697077,1740624669300,-836.09,0.00054246,120]
[354697078,1740624669310,-4100.95,0.00054246,120]
[354697079,1740624669319,-542.26,0.00054246,120]
[354697080,1740624669328,-1000.0,0.00054247,120]
[354697081,1740624669338,-150.0,0.00054266,120]
[354697082,1740624669347,-887.27,0.00054287,120]
[354697083,1740624669356,-160.8,0.00054345,120]
[354697084,1740624669365,-155.8,0.00054384,120]
[354697085,1740624669374,-400.0,0.000544,120]
[354697086,1740624669383,-151.0,0.00054438,120]
[354697087,1740624669392,-438.54986639,0.000545,120]
[354697088,1740624669401,-836.09,0.0005452,120]
[354697089,1740624669411,-4100.95,0.0005452,120]
[354697090,1740624669420,-542.26,0.0005452,120]
[354697091,1740624669429,-1000.0,0.00054521,120]
[354697092,1740624669438,-887.27,0.00054561,120]
[354697093,1740624669447,-2000.0,0.000546,30]
[354697094,1740624669456,-8668.0,0.00054793,120]
[354697095,1740624669466,-157.345278,0.00054794,120]
[354697096,1740624669475,-1000.0,0.00054794,2]
[354697097,1740624669484,-1000.0,0.00054794,2]
[354697098,1740624669494,-1000.0,0.00054794,2]
[354697099,1740624669504,-1000.0,0.00054794,2]
[354697100,1740624669515,-1000.0,0.00054794,2]
[354697101,1740624669524,-1000.0,0.00054794,2]
[354697102,1740624669533,-1000.0,0.00054794,2]
[354697103,1740624669545,-1000.0,0.00054794,2]
[354697104,1740624669554,-1063.87849682,0.00054794,2]
[354697105,1740624669564,-151.0,0.00054794,120]
[354697106,1740624669574,-151.0,0.00054794,120]
[354697107,1740624669584,-151.0,0.00054794,120]
[354697108,1740624669594,-836.09,0.00054794,120]
[354697109,1740624669604,-12680.19,0.00054794,120]
[354697110,1740624669615,-12680.19,0.00054794,120]
[354697111,1740624669627,-12680.19,0.00054794,120]
[354697112,1740624669636,-12680.19,0.00054794,120]
[354697113,1740624669645,-12680.19,0.00054794,120]
[354697114,1740624669655,-12680.19,0.00054794,120]
[354697115,1740624669664,-12680.19,0.00054794,120]
[354697116,1740624669674,-12680.19,0.00054794,120]
[354697117,1740624669684,-12680.19,0.00054794,120]
[354697118,1740624669694,-12680.19,0.00054794,120]
[354697119,1740624669704,-12680.19,0.00054794,120]
[354697120,1740624669714,-12680.19,0.00054794,120]
[354697121,1740624669723,-12680.19,0.00054794,120]
[354697122,1740624669838,-12680.19,0.00054794,120]
[354697123,1740624669849,-12680.19,0.00054794,120]
[354697124,1740624669859,-12680.19,0.00054794,120]
[354697125,1740624669868,-12680.19,0.00054794,120]
[354697126,1740624669877,-12680.19,0.00054794,120]
[354697127,1740624669887,-12680.19,0.00054794,120]
[354697128,1740624669897,-12680.19,0.00054794,120]
[354697129,1740624669906,-12680.19,0.00054794,120]
[354697130,1740624669916,-4100.95,0.00054794,120]
[354697131,1740624669927,-542.26,0.00054794,120]
[354697132,1740624669937,-12969.69,0.00054795,30]
[354697133,1740624669946,-176.31,0.00054795,30]
[354697134,1740624669956,-1000.0,0.00054795,120]
[354697135,1740624669965,-3000.0,0.000548,2]
[354697136,1740624669975,-887.27,0.00054835,120]
[354697137,1740624669984,-6125.96614938,0.000549,120]
[354697138,1740624669995,-100000.0,0.00055,55]
[354697139,1740624670005,-400.42581624,0.00055,2]
[354697140,1740624670015,-5000.0,0.00055,30]
[354697141,1740624670024,-12557.77356793,0.00055,5]
[354697142,1740624670035,-83590.0,0.00055,15]
[354697143,1740624670047,-2161.92044192,0.00055,120]
[354697144,1740624670056,-209.96501435,0.00055,120]
[354697145,1740624670065,-350.0,0.00055,120]
[354697146,1740624670075,-500.0,0.00055,15]
[354697147,1740624670084,-1020.73672172,0.00055,2]
[354697148,1740624670094,-1000000.0,0.00055,120]
[354697149,1740624670105,-1066259.94,0.00055,120]
[354697150,1740624670118,-900.0,0.00055,56]
[354697151,1740624670128,-836.09,0.00055068,120]
[354697152,1740624670138,-12680.19,0.00055068,120]
[354697153,1740624670148,-4100.95,0.00055068,120]
[354697154,1740624670159,-542.26,0.00055068,120]
[354697155,1740624670170,-1000.0,0.00055068,120]
[354697156,1740624670185,-887.27,0.00055109,120]
[354697157,1740624670194,-321.86,0.00055263,2]
[354697158,1740624670204,-204.43682844,0.00055275,13]
[354697159,1740624670214,-500.0,0.00055308,60]
[354697160,1740624670224,-836.09,0.00055342,120]
[354697161,1740624670234,-12680.19,0.00055342,120]
[354697162,1740624670245,-4100.95,0.00055342,120]
[354697163,1740624670264,-542.26,0.00055342,120]
[354697164,1740624670280,-1115.93550903,0.00055342,120]
[354697165,1740624670291,-887.27,0.00055383,120]
[354697166,1740624670301,-4786.78292366,0.000555,30]
[354697167,1740624670312,-244.88,0.000555,14]
[354697168,1740624670325,-836.311002,0.00055616,120]
[354697169,1740624670338,-12680.20189552,0.00055616,120]
[354697170,1740624670352,-4100.97437939,0.00055616,120]
[354697171,1740624670367,-542.45961669,0.00055616,120]
[354697172,1740624670377,-151.0,0.00055616,120]
[354697173,1740624670386,-887.27,0.00055656,120]
[354697174,1740624670395,-55238.47279065,0.000558,30]
[354697175,1740624670406,-500.0,0.00055814,60]
[354697176,1740624670415,-424.0,0.00055886,120]
[354697177,1740624670425,-887.27,0.0005593,120]
[354697178,1740624670434,-1000000.0,0.00056,120]
[354697179,1740624670444,-900.0,0.00056,57]
[354697180,1740624670453,-887.27,0.00056204,120]
[354697181,1740624670462,-500.0,0.00056263,41]
[354697182,1740624670471,-151.0,0.00056301,120]
[354697183,1740624670480,-887.27,0.00056478,120]
[354697184,1740624670489,-1662669.536,0.000565,120]
[354697185,1740624670498,-255.27870047,0.000566,65]
[354697186,1740624670508,-887.27,0.00056752,120]
[354697187,1740624670517,-151.0,0.00056795,120]
[354697188,1740624670526,-1000000.0,0.00057,120]
[354697189,1740624670536,-900.0,0.00057,58]
[354697190,1740624670546,-160.0,0.00057,120]
[354697191,1740624670555,-887.27,0.00057026,120]
[354697192,1740624670564,-887.49734743,0.000573,120]
[354697193,1740624670573,-500.0,0.00057321,60]
[354697194,1740624670583,-3000.0,0.000575,90]
[354697195,1740624670593,-321.86,0.00057527,2]
[354697196,1740624670602,-184.7,0.00057543,120]
[354697197,1740624670616,-182.97721232,0.000579,2]
[354697198,1740624670625,-2675.08312601,0.000579,2]
[354697199,1740624670635,-5000.0,0.0005796,30]
[354697200,1740624670645,-151.0,0.00057973,120]
[354697201,1740624670656,-10000.0,0.00058,120]
[354697202,1740624670666,-183092.40093072,0.00058,120]
[354697203,1740624670675,-1000000.0,0.00058,120]
[354697204,1740624670685,-1000000.0,0.00058,120]
[354697205,1740624670695,-900.0,0.00058,59]
[354697206,1740624670705,-150.86407443,0.0005801,30]
[354697207,1740624670714,-19562.9654688,0.00058225,30]
[354697208,1740624670724,-500.0,0.00058547,60]
[354697209,1740624670733,-999.999999,0.000587,120]
[354697210,1740624670743,-160.8,0.00058823,120]
[354697211,1740624670753,-54900.79,0.0005883,120]
[354697212,1740624670762,-4374.09712904,0.0005897,30]
[354697213,1740624670771,-267417.1912,0.00059,120]
[354697214,1740624670781,-900.0,0.00059,60]
[354697215,1740624670790,-570.6085206,0.0005909,2]
[354697216,1740624670799,-151.0,0.00059123,120]
[354697217,1740624670808,-151.0,0.00059151,120]
[354697218,1740624670818,-153.96,0.00059243,120]
[354697219,1740624670827,-800.0,0.000594,120]
[354697220,1740624670837,-964.81439034,0.000597,10]
[354697221,1740624670848,-321.86,0.00059791,2]
[354697222,1740624670858,-1000000.0,0.000598,120]
[354697223,1740624670868,-50000.0,0.0005987,120]
[354697224,1740624670878,-5573.80277632,0.000599,120]
[354697225,1740624670888,-1000000.0,0.000599,120]
[354697226,1740624670897,-78898.29038755,0.000599,30]
[354697227,1740624670906,-400.03002681,0.00059999,120]
[354697228,1740624670916,-500.0,0.00059999,120]
[354697229,1740624670925,-375.11747401,0.00059999,120]
[354697230,1740624670934,-481.83504171,0.00059999,120]
[354697231,1740624670943,-434.82628644,0.00059999,7]
[354697232,1740624670953,-200.04435659,0.00059999,120]
[354697233,1740624670962,-500.0,0.00059999,120]
[354697234,1740624670971,-500.0,0.00059999,120]
[354697235,1740624670980,-500.0,0.00059999,120]
[354697236,1740624670989,-500.0,0.00059999,120]
[354697237,1740624670998,-500.0,0.00059999,120]
[354697238,1740624671008,-500.0,0.00059999,120]
[354697239,1740624671017,-500.0,0.00059999,120]
[354697240,1740624671026,-500.0,0.00059999,120]
[354697241,1740624671035,-500.0,0.00059999,120]
[354697242,1740624671045,-500.0,0.00059999,120]
[354697243,1740624671054,-500.0,0.00059999,120]
[354697244,1740624671063,-500.0,0.00059999,120]
[354697245,1740624671073,-483.27606317,0.00059999,120]
[354697246,1740624671083,-500.0,0.00059999,120]
[354697247,1740624671092,-500.0,0.00059999,120]
[354697248,1740624671102,-500.0,0.00059999,120]
[354697249,1740624671112,-500.0,0.00059999,120]
[354697250,1740624671121,-500.0,0.00059999,120]
[354697251,1740624671131,-500.0,0.00059999,120]
[354697252,1740624671140,-500.0,0.00059999,120]
[354697253,1740624671150,-500.0,0.00059999,120]
[354697254,1740624671159,-500.0,0.00059999,120]
[354697255,1740624671168,-500.0,0.00059999,120]
[354697256,1740624671177,-200.0,0.00059999,120]
[354697257,1740624671187,-500.0,0.00059999,120]
[354697258,1740624671196,-458.21500407,0.00059999,120]
[354697259,1740624671205,-100000.0,0.0006,60]
[354697260,1740624671214,-19255.70265141,0.0006,120]
[354697261,1740624671223,-400.42581624,0.0006,2]
[354697262,1740624671232,-300.0,0.0006,120]
[354697263,1740624671244,-6258.80376661,0.0006,30]
[354697264,1740624671253,-150.0,0.0006,120]
[354697265,1740624671262,-400.0,0.0006,120]
[354697266,1740624671272,-315.84732584,0.0006,120]
[354697267,1740624671281,-341.69309269,0.0006,120]
[354697268,1740624671290,-310.94125884,0.0006,120]
[354697269,1740624671301,-1133.94332285,0.0006,30]
[354697270,1740624671311,-18000.88976622,0.0006,120]
[354697271,1740624671320,-150.0,0.0006,30]
[354697272,1740624671329,-170000.0,0.0006,120]
[354697273,1740624671339,-350.0,0.0006,120]
[354697274,1740624671347,-501.64019782,0.0006,120]
[354697275,1740624671356,-1086.07038608,0.0006,120]
[354697276,1740624671366,-402445.62018949,0.0006,120]
[354697277,1740624671375,-88390.40405044,0.0006,120]
[354697278,1740624671384,-72266.42103216,0.0006,120]
[354697279,1740624671393,-113521.6850932,0.0006,120]
[354697280,1740624671403,-1000000.0,0.0006,120]
[354697281,1740624671412,-1000000.0,0.0006,120]
[354697282,1740624671422,-18177.43358977,0.0006,120]
[354697283,1740624671431,-5000.0,0.0006,120]
[354697284,1740624671440,-1120.96923536,0.0006,20]
[354697285,1740624671449,-7227.02343142,0.0006,120]
[354697286,1740624671459,-801.39828634,0.0006,82]
[354697287,1740624671468,-1339.12270698,0.0006,82]
[354697288,1740624671477,-1000000.0,0.000601,120]
[354697289,1740624671486,-3071.21,0.00060274,120]
[354697290,1740624671496,-1816.0,0.000603,90]
[354697291,1740624671505,-151.0,0.00060329,120]
[354697292,1740624671514,-5687.08003678,0.000609,30]
[354697293,1740624671524,-204.43682844,0.000609,15]
[354697294,1740624671534,-1000000.0,0.00061,120]
[354697295,1740624671546,-1000000.0,0.00061,120]
[354697296,1740624671555,-1000000.0,0.00061,120]
[354697297,1740624671564,-493333.28,0.00061,120]
[354697298,1740624671574,-560.25,0.00061095,120]
[354697299,1740624671583,-560.25,0.00061095,120]
[354697300,1740624671592,-560.25,0.00061095,120]
[354697301,1740624671602,-560.25,0.00061095,120]
[354697302,1740624671612,-560.25,0.00061095,120]
[354697303,1740624671625,-560.25,0.00061095,120]
[354697304,1740624671635,-560.25,0.00061095,120]
[354697305,1740624671644,-560.25,0.00061095,120]
[354697306,1740624671654,-560.25,0.00061095,120]
[354697307,1740624671665,-560.25,0.00061095,120]
[354697308,1740624671675,-560.25,0.00061095,120]
[354697309,1740624671685,-560.25,0.00061095,120]
[354697310,1740624671695,-560.25,0.00061095,120]
[354697311,1740624671704,-560.25,0.00061095,120]
[354697312,1740624671714,-560.25,0.00061095,120]
[354697313,1740624671723,-560.25,0.00061095,120]
[354697314,1740624671732,-560.25,0.00061095,120]
[354697315,1740624671741,-560.25,0.00061095,120]
[354697316,1740624671750,-560.25,0.00061095,120]
[354697317,1740624671759,-560.25,0.00061095,120]
[354697318,1740624671768,-560.25,0.00061095,120]
[354697319,1740624671778,-560.25,0.00061095,120]
[354697320,1740624671787,-560.25,0.00061095,120]
[354697321,1740624671798,-560.34628043,0.00061095,120]
[354697322,1740624671807,-152.0,0.00061173,4]
[354697323,1740624671817,-242.10450725,0.00061173,5]
[354697324,1740624671826,-1000000.0,0.000615,120]
[354697325,1740624671835,-151.0,0.00061507,120]
[354697326,1740624671844,-500.0,0.00061743,43]
[354697327,1740624671853,-21031.97303818,0.000619,120]
[354697328,1740624671862,-151.0,0.00061945,120]
[354697329,1740624671871,-5000.0,0.00062,30]
[354697330,1740624671880,-1000000.0,0.00062,120]
[354697331,1740624671890,-1000000.0,0.00062,120]
[354697332,1740624671899,-958463.73,0.00062,120]
[354697333,1740624671908,-1000000.0,0.00062,120]
[354697334,1740624671917,-1000000.0,0.00062,120]
[354697335,1740624671926,-1109443.668,0.00062,120]
[354697336,1740624671935,-321.86,0.00062055,2]
[354697337,1740624671944,-1458.359,0.0006235,120]
[354697338,1740624671953,-1000000.0,0.000625,120]
[354697339,1740624672058,-78898.29038755,0.000625,30]
[354697340,1740624672067,-150.0,0.0006262,120]
[354697341,1740624672075,-151.0,0.00062685,120]
[354697342,1740624672084,-500.0,0.00062764,120]
[354697343,1740624672093,-500.0,0.00062764,120]
[354697344,1740624672102,-33806.53452714,0.00063,10]
[354697345,1740624672111,-1000000.0,0.00063,120]
[354697346,1740624672120,-1000000.0,0.00063,120]
[354697347,1740624672129,-1816.70631216,0.00063,90]
[354697348,1740624672138,-5000.0,0.00063061,30]
[354697349,1740624672147,-2609.33,0.00063067,30]
[354697350,1740624672156,-5000.0,0.0006307,30]
[354697351,1740624672165,-5000.0,0.00063074,30]
[354697352,1740624672173,-5000.0,0.00063114,30]
[354697353,1740624672182,-25000.0,0.00063114,30]
[354697354,1740624672191,-1971.85,0.00063115,30]
[354697355,1740624672201,-25000.0,0.00063157,30]
[354697356,1740624672210,-25000.0,0.00063184,30]
[354697357,1740624672219,-961.37,0.00063231,30]
[354697358,1740624672228,-1377.48,0.00063259,30]
[354697359,1740624672237,-258.4,0.00063288,30]
[354697360,1740624672246,-126145.17703992,0.000633,120]
[354697361,1740624672368,-11667.2041683,0.000633,120]
[354697362,1740624672379,-408.32404583,0.000633,120]
[354697363,1740624672436,-500.0,0.00049315,120]
[354697364,1740624672445,-566.19249947,0.00049589,120]
[354697365,1740624672454,-556.704146,0.00049589,120]
[354697366,1740624672465,-183.167872,0.00052,120]
[354697367,1740624672474,-2193.36160065,0.000633,120]
[354697368,1740624672485,-363.66593995,0.000633,120]
[354697369,1740624672497,-2241.09973302,0.000633,120]
[354697370,1740624672508,-5480.96689585,0.000633,120]
[354697371,1740624672519,-36545.01972282,0.000633,120]
[354697372,1740624672532,-18864.51085366,0.000633,120]
[354697373,1740624672542,-160.8,0.00063302,120]
[354697374,1740624672555,-500.0,0.00063312,120]
[354697375,1740624672564,-500.0,0.00063312,120]
[354697376,1740624672574,-25000.0,0.00063321,30]
[354697377,1740624672584,-5000.0,0.00063377,30]
[354697378,1740624672594,-5000.0,0.00063394,30]
[354697379,1740624672603,-49395.04300203,0.000634,120]
[354697380,1740624672617,-2519.0000009,0.000634,120]
[354697388,1740625796937,-4443.11841936,0.000149,2]
[354697389,1740625796969,-1175.4901652,0.000149,2]
[354697393,1740625831745,-416.688001,0.000149,2]
[354697394,1740625831756,-662.73596686,0.000149,2]
[354697395,1740625831768,-438.29644758,0.000149,2]
[354697396,1740625831778,-202.55559413,0.000149,2]
[354697397,1740625831787,-409.2611963,0.0001639,2]
[354697398,1740625831798,-40.7388037,0.0001639,2]
[354697399,1740625831808,-150.0,0.0001639,2]
[354697400,1740625831818,-251.16701539,0.00019917,2]
[354697401,1740625831827,-583.343,0.00021448,2]
[354697402,1740625831836,-154.15,0.00026849,2]
[354697403,1740625831845,-150.0,0.000327,2]
[354697404,1740625831855,-189.0901,0.00042481,7]
[354697405,1740625831864,-1202.68287334,0.000425,30]
[354697406,1740625831875,-287.680003,0.000425,30]
[354697407,1740625831922,-1509.63712366,0.000425,30]
[354697408,1740625831932,-150.0,0.00043487,2]
[354697409,1740625831942,-583.344,0.00043586,68]
[354697410,1740625831951,-150.0,0.00044,57]
[354697411,1740625831960,-2317.61025925,0.00045,30]
[354697412,1740625831971,-975.07666383,0.00045,30]
[354697413,1740625831981,-646.0,0.00048597,30]
[354697414,1740625831990,-646.0,0.00049098,30]
[354697415,1740625832000,-500.0,0.00049315,120]
[354697416,1740625832009,-493.61043488,0.00049589,120]
[354697417,1740625832021,-646.0,0.00049599,30]
[354697418,1740625832031,-646.0,0.000501,30]
[354697419,1740625832040,-298.21077676,0.000501,30]
[354697420,1740625832049,-646.0,0.00050601,30]
[354697421,1740625832058,-210.7057627,0.000509,12]
[354697422,1740625832068,-500.0,0.00050933,20]
[354697423,1740625832078,-500.0,0.00050933,20]
[354697424,1740625832087,-500.0,0.00050933,20]
[354697425,1740625832099,-500.0,0.00050933,20]
[354697426,1740625832108,-500.0,0.00050933,20]
[354697427,1740625832117,-500.0,0.00050933,20]
[354697428,1740625832126,-500.0,0.00050933,20]
[354697429,1740625832136,-500.0,0.00050933,20]
[354697430,1740625832146,-393.73623464,0.00050933,20]
[354697431,1740625832155,-646.0,0.00051102,30]
[354697432,1740625832164,-646.0,0.00051603,30]
[354697433,1740625832174,-210.7057627,0.00052355,12]
[354697434,1740625832183,-210.7057627,0.00053809,12]
[354697435,1740625832192,-166.42,0.00054279,2]
[354697436,1740625832201,-1041.33,0.00054283,2]
[354697437,1740625832211,-1248.03,0.0005431,120]
[354697438,1740625832220,-1000.0,0.00054792,120]
[354697439,1740625832230,-1883.79,0.00054806,2]
[354697440,1740625832239,-1622.62,0.00054857,120]
[354697441,1740625832248,-313.67,0.00054998,2]
[354697442,1740625832257,-545.0,0.00055164,120]
[354697443,1740625832266,-1500.0,0.00055186,120]
[354697444,1740625832275,-210.7057627,0.00055264,13]
[354697445,1740625832284,-2000.0,0.00055266,120]
[354697446,1740625832293,-1001.26,0.0005534,30]
[354697447,1740625832302,-159.87,0.00056018,120]
[354697448,1740625832311,-498.74851104,0.00056268,2]
[354697449,1740625832323,-508.60339363,0.00056268,2]
[354697450,1740625832334,-875.69809533,0.00056268,2]
[354697451,1740625832436,-492.15,0.00056268,30]
[354697452,1740625832446,-3736.6,0.00056294,2]
[354697453,1740625832455,-150.0,0.00056294,7]
[354697454,1740625832464,-200.0,0.00056341,2]
[354697455,1740625832473,-164.83,0.00056346,2]
[354697456,1740625832482,-250.0,0.00056353,120]
[354697457,1740625832491,-169.28,0.00056626,2]
[354697458,1740625832499,-210.7057627,0.00056718,13]
[354697459,1740625832508,-23900.0,0.00057847,2]
[354697460,1740625832518,-210.7057627,0.00058173,14]
[354697461,1740625832526,-210.7057627,0.00059627,14]
[354697462,1740625832535,-166.42,0.00060424,2]
[354697463,1740625832545,-1587.49,0.00060576,2]
[354697464,1740625832554,-1587.49,0.00060894,2]
[354697465,1740625832563,-210.7057627,0.00061082,15]
[354697466,1740625832573,-152.0,0.00061173,5]
[354697467,1740625832582,-1587.49,0.00061213,2]
[354697468,1740625832591,-169.28,0.00061299,2]
[354697469,1740625832601,-1587.49,0.00061532,2]
[354697470,1740625832610,-1000.0,0.00061641,120]